Cogmind - Beta 11 X6 @@@ ROGUE MODE // 2021.08.06 @ 02:01:39 Player: aperiodic Result: Destroyed by D-53 Grenadier with Mini Grenade Launcher Performance ------------- Evolutions (0) 0 Regions Visited (2) 400 Robots Destroyed (33) 165 Value Destroyed (566) 566 Prototype IDs (6) 120 Alien Tech Used (0) 0 Bonus (-57) -57 TOTAL SCORE: 1194 Bonus ------- Friendly Fire -57 Cogmind --------- Core Integrity 0/250 Matter 182/300 Energy 30/100 System Corruption 0% Temperature Cool (0) Movement Rolling (110) Ox2 Location -10/Mines Parts ------- > --- POWER (1) -------- (None) > --- PROPULSION (2) --- Wheel > --- UTILITY (2) ------ Improved Heat Sink Large Storage Unit > --- WEAPON (2) ------- Particle Gun Beamcaster > --- INVENTORY (15) --- High-capacity Storage Unit Huge Storage Unit High-capacity Matter Pod (200) Hacking Suite Light Assault Rifle Light Assault Rifle Rocket Launcher Rocket Launcher Mining Laser Plasma Cutter Signal Generator Peak State ------------ > --- POWER ------------ Ion Engine > --- PROPULSION ------- Wheel Wheel > --- UTILITY ---------- Large Storage Unit Light Armor Plating > --- WEAPON ----------- Particle Gun Beamcaster > --- INVENTORY -------- Wheel Medium Storage Unit High-capacity Storage Unit Huge Storage Unit High-capacity Matter Pod Hacking Suite Light Assault Rifle Light Assault Rifle Rocket Launcher Rocket Launcher Rocket Launcher Rocket Launcher Mining Laser Plasma Cutter Signal Generator [Rating: 14] Favorites ----------- Power Ion Engine Engine Ion Engine Propulsion Wheel Wheel Wheel Utility Large Storage Unit Device Improved Heat Sink Storage Large Storage Unit Protection Light Armor Plating Weapon Medium Laser Energy Gun Medium Laser Ballistic Gun Assault Rifle Launcher Rocket Launcher Build | -11 -10 -10 ------- Run | Scr Mat Min Slots Evolved . | . . . Power . | . . . Propulsion . | . . . Utility . | . . . Weapon . | . . . Parts Attached 32 | 9 14 9 Power 4 | 1 3 . Engine 4 | 1 3 . Core . | . . . Reactor . | . . . Propulsion 11 | 5 4 2 Treads . | . . . Leg . | . . . Wheel 11 | 5 4 2 Hover . | . . . Flight . | . . . Utility 6 | 1 4 1 Device 1 | . . 1 Storage 4 | 1 3 . Processor . | . . . Hackware . | . . . Protection 1 | . 1 . Artifact . | . . . Weapon 11 | 2 3 6 Energy Gun 7 | 1 2 4 Energy Cannon . | . . . Ballistic Gun 2 | 1 1 . Ballistic Cannon . | . . . Launcher 2 | . . 2 Special Weapon . | . . . Impact Weapon . | . . . Slashing Weapon . | . . . Piercing Weapon . | . . . Special Melee Weapon . | . . . Unidentified Prototypes . | . . . Parts Lost 7 | . 1 6 Power 1 | . . 1 Propulsion 2 | . . 2 Utility 1 | . . 1 Weapon 3 | . 1 2 Highest Loss Streak 6 | . 1 6 Average Slot Usage (%) 97 | . 98 92 Engine 13 | . 14 12 Wheel 27 | . 27 25 Storage 14 | . 14 14 Protection 12 | . 12 11 Energy Gun 19 | . 17 24 Ballistic Gun 8 | . 10 . Naked Turns . | . . . Heaviest Build 49 | 14 49 36 Greatest Support 32 | 32 20 20 Greatest Overweight (x) 6 | 1 3 6 Average Overweight (x) . | . . 1 Largest Inventory Capacity 15 | 8 15 15 Average Capacity 14 | 7 14 15 Most Carried 15 | 4 15 15 Average Carried 11 | 1 10 14 Final Capacity 15 | 8 15 15 Final Carried 15 | 3 15 11 Class Distribution -------------------- 100% | Mutant Dominant Class ---------------- Mutant | -10/Materials Mutant | -10/Mines Resources | -11 -10 -10 ----------- Run | Scr Mat Min Matter Collected 805 | 311 464 30 Remotely . | . . . Salvage Created 1047 | 137 683 227 Parts 71 | 8 44 19 Haulers Intercepted . | . . . Recyclers Shooed 2 | . 2 . Parts Field Recycled . | . . . Retrieved Matter . | . . . Parts Self-Destructed . | . . . Prevented . | . . . Kills | -11 -10 -10 ------- Run | Scr Mat Min Combat Hostiles Destroyed 36 | . 16 20 Guns 19 | . 16 3 AOE 17 | . . 17 Classes Destroyed 9 | 2 5 2 Worker 3 | . 2 1 Tunneler 5 | 3 . 2 Recycler 3 | 1 2 . Operator 1 | . 1 . Watcher 2 | . 2 . Swarmer 9 | . 9 . Grunt 9 | . 7 2 Demolisher 1 | . . 1 Assembled 17 | . . 17 Best Kill Streak 17 | 4 4 17 Combat Bots Only 17 | . 4 17 Max Kills in Single Turn 6 | 1 2 6 Gunslinging . | . . . Exploded 6 | . . 6 Melee . | . . . Uniques/NPCs Destroyed . | . . . Combat | -11 -10 -10 -------- Run | Scr Mat Min Damage Taken 1067 | . 362 705 Core 250 | . 40 210 Absorbed by Shields . | . . . Core Remaining (%) 100 | 100 . . Volleys Fired 70 | 7 50 13 Largest 2 | 2 2 2 Hottest 140 | 70 100 140 Shots Fired 140 | 14 100 26 Gun 132 | 14 100 18 Cannon . | . . . Launcher 8 | . . 8 Special . | . . . Kinetic 50 | 7 43 . Thermal 82 | 7 57 18 Explosive 8 | . . 8 Electromagnetic . | . . . Robot Hit Streak 16 | 10 16 6 Robot Miss Streak 5 | . 5 2 Penetration Max . | . . . Secondary Targets . | . . . Shots Hit Robots 89 | 10 64 15 Core Hits 77 | 5 32 40 Critical Kills . | . . . Critical Parts Destroyed 1 | 1 . . Critical Strikes 7 | 2 4 1 Burn 6 | 1 4 1 Destroy 1 | 1 . . Melee Attacks . | . . . Impact . | . . . Slashing . | . . . Piercing . | . . . Sneak Attacks . | . . . Combat Hostiles . | . . . Follow-up Attacks . | . . . Damage Inflicted 2288 | 124 864 1300 Guns 1188 | 124 864 200 Cannons . | . . . Explosions 1100 | . . 1100 Melee . | . . . Ramming . | . . . Kinetic 352 | 37 315 . Thermal 836 | 87 549 200 Explosive 1100 | . . 1100 Electromagnetic . | . . . Impact . | . . . Slashing . | . . . Piercing . | . . . Highest Corruption . | . . . Average Corruption . | . . . Corruption Purged . | . . . Overload Shots . | . . . Overflow Damage 104 | . . 104 Projectiles . | . . . Explosions 104 | . . 104 Melee . | . . . Knockbacks . | . . . Impact . | . . . Kinetic . | . . . Secondary . | . . . Self-Inflicted Damage 31 | . . 31 Shots 1 | . . 1 Rammed . | . . . Targets Rammed . | . . . Kicked . | . . . Crushed . | . . . Highest Temperature 217 | 27 217 150 Average Temperature 52 | 10 58 48 Received Heat Transfer 177 | . 108 69 Siege Activations . | . . . Robots Corrupted . | . . . Combat Hostiles . | . . . Parts Fried . | . . . Impact Corruptions . | . . . Robots Melted . | . . . Combat Hostiles . | . . . Parts Melted 6 | 1 5 . Heat Transferred 2775 | 333 1850 592 Parts Sabotaged . | . . . Parts Stolen . | . . . Parts Stripped . | . . . Power Chain Reactions . | . . . Missiles Intercepted . | . . . Alert | -11 -10 -10 ------- Run | Scr Mat Min Peak Influence 364 | 20 364 149 Initial 84 | . 13 84 Average 174 | 5 200 126 Maximum Alert Level 1 | . 1 . Low Security (%) 56 | 100 42 100 Level 1 43 | . 57 . Level 2 . | . . . Level 3 . | . . . Level 4 . | . . . Level 5 . | . . . High Security . | . . . Max Security . | . . . Squads Dispatched 3 | . 3 . Investigation 2 | . 2 . Extermination . | . . . Reinforcement 1 | . 1 . Assault . | . . . Garrison . | . . . Intercept . | . . . Construction Impeded . | . . . Haulers Reinforced . | . . . Active Scanning Responses . | . . . Cargo Convoy Interrupts . | . . . Stealth | -11 -10 -10 --------- Run | Scr Mat Min Distress Signals . | . . . Communications Jammed . | . . . Distress Signals . | . . . Times Spotted 52 | . 24 28 Peak Tracking Total 20 | . 4 20 Tactical Retreats 1 | . 1 . Traps | -11 -10 -10 ------- Run | Scr Mat Min Traps Triggered 1 | . 1 . Indirectly . | . . . Trap Hack Attempts . | . . . Triggered . | . . . Disarmed . | . . . Reprogrammed . | . . . Reused . | . . . Traps Extracted . | . . . Installed . | . . . Triggered . | . . . Machines | -11 -10 -10 ---------- Run | Scr Mat Min Machines Disabled . | . . . Max in Single Turn . | . . . Machines Sabotaged . | . . . Garrisons Compromised . | . . . Overloaded Fab Kills . | . . . Fab Network Shutdowns . | . . . Hacking | -11 -10 -10 --------- Run | Scr Mat Min Machines Accessed 8 | . 8 . Terminals 5 | . 5 . Fabricators . | . . . Repair Stations 1 | . 1 . Recycling Units 2 | . 2 . Scanalyzers . | . . . Garrison Access . | . . . Total Hacks 25 | . 25 . Successful 18 | . 18 . Failed 7 | . 7 . Catastrophic . | . . . Database Lockouts . | . . . Manual 14 | . 14 . Terminals 21 | . 21 . Fabricators . | . . . Repair Stations 2 | . 2 . Recycling Units 2 | . 2 . Scanalyzers . | . . . Garrison Access . | . . . Terminal Hacks 10 | . 10 . Robot Analysis 2 | . 2 . Prototype ID Bank 4 | . 4 . Terminal Index 1 | . 1 . Locate Traps 1 | . 1 . Hauler Manifests 1 | . 1 . Zone Layout 1 | . 1 . Fabricator Hacks . | . . . Repair Station Hacks 2 | . 2 . Scan Component 1 | . 1 . Repair 1 | . 1 . Recycling Unit Hacks . | . . . Scanalyzer . | . . . Garrison Access Hacks . | . . . Unauthorized Hacks 6 | . 6 . Terminals 4 | . 4 . Track 1 | . 1 . Botnet 2 | . 2 . Operators 1 | . 1 . Fabricators . | . . . Repair Stations . | . . . Recycling Units 2 | . 2 . Tunnel 2 | . 2 . Scanalyzers . | . . . Garrison Access . | . . . Data Cores Recovered . | . . . Used . | . . . Hacking Detections 6 | . 6 . Full Trace Events . | . . . Feedback Events . | . . . Feedback Blocked . | . . . Robot Schematics Acquired . | . . . Robots Built . | . . . Matter . | . . . Time . | . . . Total Robot Build Rating . | . . . Part Schematics Acquired . | . . . Parts Built . | . . . Matter . | . . . Time . | . . . Total Part Build Rating . | . . . Parts Repaired 1 | . 1 . Time 26 | . 26 . Parts Recycled . | . . . Recycled Matter . | . . . Retrieved Matter . | . . . Retrieved Components . | . . . Parts Scanalyzed . | . . . Part Schematics Acquired . | . . . Parts Damaged . | . . . Bothacking | -11 -10 -10 ------------ Run | Scr Mat Min Used RIF Installer . | . . . Robots Hacked . | . . . Non-combat . | . . . Combat . | . . . Robot Hacks Applied . | . . . Relay Couplers Released . | . . . Robots Rewired . | . . . Allies Hacked . | . . . Hacks Repelled . | . . . Allies | -11 -10 -10 -------- Run | Scr Mat Min Total Allies . | . . . Largest Group . | . . . Highest-Rated Group . | . . . Highest-Rated Ally . | . . . Total Orders . | . . . Ally Attacks . | . . . Total Damage . | . . . Kills . | . . . Allies Corrupted . | . . . Allies Melted . | . . . Intel | -11 -10 -10 ------- Run | Scr Mat Min Robot Analysis Total 2 | . 2 . Derelict Logs Recovered . | . . . Drone Launches . | . . . Drone Recoveries . | . . . Exploration | -11 -10 -10 ------------- Run | Scr Mat Min Turns Passed 1458 | 95 1086 277 Spaces Moved 1004 | 62 723 219 Core 9 | 8 . 1 Treads . | . . . Legs . | . . . Wheels 995 | 54 723 218 Hover . | . . . Flight . | . . . Fastest Speed 50 | 50 80 95 Average Speed 94 | 91 94 96 Slowest Speed 350 | 100 125 350 Overloaded Moves . | . . . Propulsion Burnouts . | . . . Robots Hopped . | . . . Cave-ins Triggered . | . . . Exploration Rate (%) 46 | 4 83 52 Regions Visited 2 Branch Regions 1 Pre-discovered Areas 2 | . 2 . Known Exits Taken . | . . . Unknown Exits Taken 2 | 1 1 . Scrap Searched . | . . . Spaces Dug . | . . . Terrain Destroyed 73 | . . 73 Melee . | . . . Projectile . | . . . AOE 73 | . . 73 Terrain Rammed . | . . . Walls Destroyed . | . . . Machines Disabled . | . . . Actions | -11 -10 -10 --------- Run | Scr Mat Min Total 1364 | 82 1020 262 Wait 228 | 2 216 10 Move 1002 | 61 722 219 Hop . | . . . Pick Up 19 | 2 13 4 Fast Attach 11 | 6 5 . Attach 6 | . 2 4 Detach . | . . . Swap 15 | 3 7 5 Drop 13 | 1 5 7 Fire 70 | 7 50 13 Melee . | . . . Ram . | . . . Kick . | . . . Crush . | . . . Escape Stasis . | . . . Rewire . | . . . Trap . | . . . Miscellaneous . | . . . Route ------- -11/Scrapyard -10/Materials (discovered 4 exits: [*Mat x3] / [*Min]) -10/Mines History --------- Turn | Location | Event 13 | -11/Scrapyard | Discovered new exit (range 16) 96 | -11/Scrapyard | Entered Materials 245 | -10/Materials | Discovered new exit (range 4) 307 | -10/Materials | Build established: Mutant 344 | -10/Materials | Discovered new exit (range 15) 546 | -10/Materials | Repaired Wheel 611 | -10/Materials | Discovered new exit (range 7) 633 | -10/Materials | Discovered new exit (range 15) 1182 | -10/Materials | Entered Mines 1193 | -10/Mines | Met a Derelict testing a Signal Generator 1199 | -10/Mines | Found Signal Generator 1205 | -10/Mines | Met a Derelict bent on vengeance 1410 | -10/Mines | Assembled infested the area 1422 | -10/Mines | Core integrity fell below 50% 1444 | -10/Mines | Destroyed 17 combat bots 1458 | -10/Mines | Core integrity fell below 20% 1459 | -10/Mines | Destroyed by D-53 Grenadier with Mini Grenade Launcher Last Messages --------------- 01423_ as-24037 destroyed. 01423_ Rocket Launcher destroyed. 01424_ C-30 ARC bursts open, deploying its payload. 01424_ D-53 Grenadier unfolds itself. 01424_ K-01 Serf collects debris. 01425_ The unstable cave ceiling collapses. 01426_ Ion Engine destroyed. 01428_ K-01 Serf collects debris. 01429_ 4C-Y8V(g): "TASTE MY VENGEANCE!" 01431_ 4C-Y8V(g) destroyed. 01432_ K-01 Serf collects debris. 01432_ Rocket Launcher destroyed. 01434_ The unstable cave ceiling collapses. 01435_ as-80471 destroyed. 01438_ The unstable cave ceiling collapses. 01438_ Wheel destroyed. 01440_ The unstable cave ceiling collapses. 01450_ D-53 Grenadier destroyed. 01451_ The unstable cave ceiling collapses. 01458_ K-01 Serf collects debris. Map ----- +----------------------------------------------------+ | ??????????????????????????????????????? | | ??????????????????????????????????????? | | ??????????????????????????????????????? | | ??????????????????????????????????????? | | ??????????????????????????????????????? | | ??????????????????????????????????????? | | ??????????????????????????????????????? | | ??????????????????????????????????????? | | ??????????????????????????????????????? | | ??????????????????????????????????????? | | ??????????????????????????????????????? | | ??????????????????????????????????????? | | ??????????????????????????????????????? | | ??????????????????????????????????????? | | ??????????????????????????????????????? | | ??????????????????????????????????????? | | ??????????????????????????????????????? | | ?????????????????????????####?????????? | | ?????????????????????????# ?????????? | | ?????????????????????????# ?????????? | | ????????????????##???????# #?????????? | | ??????????###### ##?????## #?????????? | | ?????????## ##???## ##????????? | | ?????????# #??## #####????? | | ?????????# #### #????? | | ????????## !d@ #????? | | ???????## ##### #????? | | ???????### # # ## ##????? | | ???????# # ## ##?????? | | ???????# # # ###= #??????? | | ???# % ####% #??????? | | ??# #??????? | | ??#< # #??????? | | ??# % # k [ ##?????? | | ??# # ## % ! %! ###???? | | ??? ###### ###? ##??? | | ???##???##?### ??? # #??? | | ?????????????###??? ## #??? | | ???????????????????# #### #??? | | ???????????????????? ##??## #??? | | ??????????????????? ##????# #??? | | ??????????????????## ##?????# #??? | | ???????????????????# ##??????# #??? | | ???????????????????## ##???????# #??? | | ????????????????????# ?????????# #??? | | ????????????????????#" ?????????# #??? | | ????????????????????#%"?????????# #??? | | ???????????????????? ?????????# #### | | ????????????????????????????????# # | | ????????????????????????????????##### # | +----------------------------------------------------+ Best States ------------- Heat Dissipation 39 Energy Generation 10 Energy Capacity 250 Matter Stores 300 Matter Capacity 300 Sight Range 16 Terrain Scan Density 10 Armor Coverage 150 Evasion (%) 44 Item Schematics ----------------- None Robot Schematics ------------------ None Fabricated ------------ Nothing Alien Tech Used ----------------- None Achievements -------------- None Challenges ------------ None Game ------ Seed QuantumMetafieldTerrabomb Manual? 0 Play Time 00:16:36 Cumulative 419.3 hours Start 2021.08.06 @ 01:46:12 End 2021.08.06 @ 02:01:39 Sessions 1 Manual Loads 0 Difficulty Rogue Special Mode None Game No. 136 Rogue 132 Adventurer 4 Explorer 0 Win Type - Total 10 Types 5/1/3/0/0/0/0/1/0 Lore% 82 Gallery% 81 Achievement% 68 Wizard Run 0 Options --------- ASCII 1 Keyboard 0 Movement Arrows Keybinds 0 Fullscreen 1 Font 18/Terminus Map View 76x50 Tactical HUD 1 Map Filters NONE Filters NONE Steam 1 RUN: b4cb5ef4-b53e-4d38-b94a-e360a11a66ee